[Event "Titled Tuesday Blitz May 9 Early 2023"]
[White "Botez, Alexandra"]
[Black "Han, Yichen"]
[WhiteFideId "2603365"]
[BlackFideId "1054430"]
[WhiteElo "2040"]
[BlackElo "2342"]
[Result "0-1"]
[Round "01"]
[TimeControl "180+2"]
[Date "2023.05.09"]
[WhiteClock "0:00:02"]
[BlackClock "0:00:38"]

1. d4 {[%clk 0:02:59]}  d5 {[%clk 0:02:58]} 2. Nf3 {[%clk 0:02:58]}  Nf6 {[%clk 0:02:56]} 3. c4 {[%clk 0:02:57]}  c6 {[%clk 0:02:54]} 4. cxd5 {[%clk 0:02:53]}  cxd5 {[%clk 0:02:54]} 5. Nc3 {[%clk 0:02:54]}  Nc6 {[%clk 0:02:52]} 6. Bf4 {[%clk 0:02:53]}  Ne4 {[%clk 0:02:53]} 7. Qb3 {[%clk 0:02:49]}  Nxc3 {[%clk 0:02:44]} 8. bxc3 {[%clk 0:02:37]}  e6 {[%clk 0:02:39]} 9. e3 {[%clk 0:02:36]}  Bd6 {[%clk 0:02:37]} 10. Bg3 {[%clk 0:02:29]}  O-O {[%clk 0:02:30]} 11. Bd3 {[%clk 0:02:29]}  h6 {[%clk 0:02:21]} 12. Rc1 {[%clk 0:01:52]}  b6 {[%clk 0:02:16]} 13. O-O {[%clk 0:01:39]}  Na5 {[%clk 0:02:12]} 14. Qb1 {[%clk 0:01:36]}  Bb7 {[%clk 0:02:03]} 15. Ne5 {[%clk 0:01:32]}  Rc8 {[%clk 0:01:55]} 16. f4 {[%clk 0:01:15]}  Nc4 {[%clk 0:01:53]} 17. Nxc4 {[%clk 0:01:11]}  dxc4 {[%clk 0:01:54]} 18. Be4 {[%clk 0:01:12]}  Bxe4 {[%clk 0:01:46]} 19. Qxe4 {[%clk 0:01:12]}  Ba3 {[%clk 0:01:46]} 20. Rb1 {[%clk 0:01:10]}  Qd5 {[%clk 0:01:44]} 21. Qc2 {[%clk 0:01:08]}  f5 {[%clk 0:01:43]} 22. Qa4 {[%clk 0:01:04]}  Bd6 {[%clk 0:01:30]} 23. Qxa7 {[%clk 0:01:03]}  Ra8 {[%clk 0:01:29]} 24. Qxb6 {[%clk 0:01:01]}  Rxa2 {[%clk 0:01:23]} 25. Rf2 {[%clk 0:00:54]}  Rxf2 {[%clk 0:01:17]} 26. Bxf2 {[%clk 0:00:28]}  Rb8 {[%clk 0:01:17]} 27. Qxb8+ {[%clk 0:00:28]}  Bxb8 {[%clk 0:01:17]} 28. Rxb8+ {[%clk 0:00:29]}  Kh7 {[%clk 0:01:17]} 29. Rb2 {[%clk 0:00:24]}  Qa5 {[%clk 0:01:13]} 30. Be1 {[%clk 0:00:20]}  Qa1 {[%clk 0:01:10]} 31. Re2 {[%clk 0:00:20]}  Qb1 {[%clk 0:01:08]} 32. Kf1 {[%clk 0:00:20]}  Qd3 {[%clk 0:01:03]} 33. Kf2 {[%clk 0:00:20]}  g5 {[%clk 0:01:02]} 34. g3 {[%clk 0:00:19]}  Kg6 {[%clk 0:01:00]} 35. Kf1 {[%clk 0:00:18]}  Kh5 {[%clk 0:01:00]} 36. h3 {[%clk 0:00:17]}  Qe4 {[%clk 0:00:54]} 37. Kg1 {[%clk 0:00:16]}  Qf3 {[%clk 0:00:50]} 38. Rf2 {[%clk 0:00:08]}  Qxg3+ {[%clk 0:00:43]} 39. Kf1 {[%clk 0:00:02]}  Qxe3 {[%clk 0:00:38]} 0-1


[Site "https://www.chess.com"]

[Event "Titled Tuesday Blitz May 9 Early 2023"]
[White "MKlose11"]
[Black "Kuchava, Ana"]
[BlackFideId "13605348"]
[WhiteElo "2564"]
[BlackElo "2001"]
[Result "1-0"]
[Round "01"]
[TimeControl "180+2"]
[Date "2023.05.09"]
[WhiteClock "0:01:15"]
[BlackClock "0:00:00"]

1. e4 {[%clk 0:02:58]}  c5 {[%clk 0:02:53]} 2. Nc3 {[%clk 0:02:58]}  Nc6 {[%clk 0:02:48]} 3. g3 {[%clk 0:02:58]}  g6 {[%clk 0:02:46]} 4. d3 {[%clk 0:02:59]}  Bg7 {[%clk 0:02:46]} 5. Bg2 {[%clk 0:02:59]}  d6 {[%clk 0:02:44]} 6. Be3 {[%clk 0:02:59]}  Nd4 {[%clk 0:02:35]} 7. Qd2 {[%clk 0:02:59]}  Rb8 {[%clk 0:02:31]} 8. Nd1 {[%clk 0:02:55]}  Bd7 {[%clk 0:02:28]} 9. c3 {[%clk 0:02:55]}  Nc6 {[%clk 0:02:26]} 10. Ne2 {[%clk 0:02:55]}  b5 {[%clk 0:02:23]} 11. O-O {[%clk 0:02:52]}  Nf6 {[%clk 0:02:19]} 12. h3 {[%clk 0:02:49]}  O-O {[%clk 0:02:18]} 13. Bh6 {[%clk 0:02:47]}  b4 {[%clk 0:02:17]} 14. Bxg7 {[%clk 0:02:47]}  Kxg7 {[%clk 0:02:17]} 15. Ne3 {[%clk 0:02:48]}  bxc3 {[%clk 0:02:14]} 16. bxc3 {[%clk 0:02:49]}  Qa5 {[%clk 0:02:11]} 17. f4 {[%clk 0:02:44]}  Nd4 {[%clk 0:01:39]} 18. e5 {[%clk 0:02:29]}  Ne8 {[%clk 0:01:15]} 19. Rac1 {[%clk 0:02:17]}  Nxe2+ {[%clk 0:01:10]} 20. Qxe2 {[%clk 0:02:18]}  Nc7 {[%clk 0:01:03]} 21. Nc4 {[%clk 0:02:16]}  Qa6 {[%clk 0:01:00]} 22. exd6 {[%clk 0:02:13]}  exd6 {[%clk 0:01:00]} 23. Qe7 {[%clk 0:02:12]}  Rbd8 {[%clk 0:00:53]} 24. Nxd6 {[%clk 0:02:10]}  Bxh3 {[%clk 0:00:21]} 25. Qe5+ {[%clk 0:01:53]}  Kg8 {[%clk 0:00:15]} 26. Ne4 {[%clk 0:01:50]}  f6 {[%clk 0:00:10]} 27. Qxc7 {[%clk 0:01:50]}  Bxg2 {[%clk 0:00:10]} 28. Kxg2 {[%clk 0:01:51]}  Rxd3 {[%clk 0:00:10]} 29. Qxc5 {[%clk 0:01:43]}  Qxa2+ {[%clk 0:00:08]} 30. Rf2 {[%clk 0:01:42]}  Qa6 {[%clk 0:00:06]} 31. Re1 {[%clk 0:01:25]}  Qb7 {[%clk 0:00:04]} 32. Qc4+ {[%clk 0:01:25]}  Qd5 {[%clk 0:00:02]} 33. Qxd5+ {[%clk 0:01:24]}  Rxd5 {[%clk 0:00:03]} 34. Ra1 {[%clk 0:01:22]}  a5 {[%clk 0:00:02]} 35. c4 {[%clk 0:01:21]}  Rd4 {[%clk 0:00:00]} 36. Nd2 {[%clk 0:01:15]} 1-0


[Site "https://www.chess.com"]

[Event "Titled Tuesday Blitz May 9 Early 2023"]
[White "Sharapov, Evgeny"]
[Black "Yang,ching Wei, Austin"]
[WhiteFideId "14103133"]
[BlackFideId "16300440"]
[WhiteElo "2367"]
[BlackElo "2101"]
[Result "1-0"]
[Round "01"]
[TimeControl "180+2"]
[Date "2023.05.09"]
[WhiteClock "0:00:28"]
[BlackClock "0:00:00"]

1. e4 {[%clk 0:02:57]}  c5 {[%clk 0:03:00]} 2. Nf3 {[%clk 0:02:56]}  d6 {[%clk 0:03:00]} 3. d4 {[%clk 0:02:57]}  cxd4 {[%clk 0:03:01]} 4. Nxd4 {[%clk 0:02:57]}  Nf6 {[%clk 0:03:01]} 5. Nc3 {[%clk 0:02:57]}  Nc6 {[%clk 0:03:02]} 6. g3 {[%clk 0:02:57]}  g6 {[%clk 0:02:52]} 7. Nde2 {[%clk 0:02:56]}  Bg7 {[%clk 0:02:52]} 8. Bg2 {[%clk 0:02:57]}  O-O {[%clk 0:02:52]} 9. O-O {[%clk 0:02:56]}  a6 {[%clk 0:02:46]} 10. a4 {[%clk 0:02:56]}  Bd7 {[%clk 0:02:44]} 11. Nd5 {[%clk 0:02:55]}  Rc8 {[%clk 0:02:41]} 12. Bg5 {[%clk 0:02:55]}  Nxd5 {[%clk 0:02:32]} 13. exd5 {[%clk 0:02:54]}  Ne5 {[%clk 0:02:30]} 14. c3 {[%clk 0:02:43]}  Bg4 {[%clk 0:02:17]} 15. f3 {[%clk 0:02:40]}  Bf5 {[%clk 0:02:06]} 16. Kh1 {[%clk 0:02:38]}  h6 {[%clk 0:01:50]} 17. Be3 {[%clk 0:02:35]}  Nc4 {[%clk 0:01:47]} 18. Bc1 {[%clk 0:02:34]}  Qb6 {[%clk 0:01:44]} 19. Nd4 {[%clk 0:02:25]}  Bxd4 {[%clk 0:01:38]} 20. Qxd4 {[%clk 0:02:25]}  Qxd4 {[%clk 0:01:36]} 21. cxd4 {[%clk 0:02:25]}  Kg7 {[%clk 0:01:30]} 22. Re1 {[%clk 0:02:24]}  Rfe8 {[%clk 0:01:26]} 23. a5 {[%clk 0:01:56]}  e6 {[%clk 0:01:03]} 24. dxe6 {[%clk 0:01:41]}  d5 {[%clk 0:00:54]} 25. b3 {[%clk 0:01:39]}  Nd6 {[%clk 0:00:48]} 26. Bf4 {[%clk 0:01:33]}  Nb5 {[%clk 0:00:43]} 27. exf7 {[%clk 0:01:33]}  Rxe1+ {[%clk 0:00:32]} 28. Rxe1 {[%clk 0:01:32]}  Kxf7 {[%clk 0:00:32]} 29. g4 {[%clk 0:01:25]}  Bd7 {[%clk 0:00:27]} 30. Be5 {[%clk 0:01:23]}  Rc2 {[%clk 0:00:23]} 31. f4 {[%clk 0:01:21]}  Bxg4 {[%clk 0:00:14]} 32. Bxd5+ {[%clk 0:01:20]}  Be6 {[%clk 0:00:15]} 33. Be4 {[%clk 0:01:09]}  Ra2 {[%clk 0:00:09]} 34. d5 {[%clk 0:01:08]}  Bf5 {[%clk 0:00:09]} 35. Bg2 {[%clk 0:01:01]}  Rxa5 {[%clk 0:00:04]} 36. d6 {[%clk 0:01:01]}  Ra3 {[%clk 0:00:03]} 37. Bxb7 {[%clk 0:00:59]}  Be6 {[%clk 0:00:03]} 38. Rd1 {[%clk 0:00:38]}  Nxd6 {[%clk 0:00:02]} 39. Rxd6 {[%clk 0:00:32]}  Rxb3 {[%clk 0:00:00]} 40. Bxa6 {[%clk 0:00:28]} 1-0


[Site "https://www.chess.com"]

[Event "Titled Tuesday Blitz May 9 Early 2023"]
[White "Smietanska, Wiktoria"]
[Black "Saya, Ethan"]
[WhiteFideId "21869359"]
[BlackFideId "26095181"]
[WhiteElo "1995"]
[BlackElo "2164"]
[Result "0-1"]
[Round "01"]
[TimeControl "180+2"]
[Date "2023.05.09"]
[WhiteClock "0:00:00"]
[BlackClock "0:00:13"]

1. c4 {[%clk 0:02:59]}  Nf6 {[%clk 0:02:59]} 2. Nc3 {[%clk 0:02:59]}  g6 {[%clk 0:02:58]} 3. g3 {[%clk 0:02:58]}  d6 {[%clk 0:02:59]} 4. Bg2 {[%clk 0:02:58]}  Bg7 {[%clk 0:03:00]} 5. e4 {[%clk 0:02:57]}  O-O {[%clk 0:03:00]} 6. Nge2 {[%clk 0:02:56]}  c5 {[%clk 0:02:59]} 7. O-O {[%clk 0:02:55]}  Nc6 {[%clk 0:02:58]} 8. d3 {[%clk 0:02:55]}  Nd7 {[%clk 0:02:55]} 9. Be3 {[%clk 0:02:50]}  Nde5 {[%clk 0:02:53]} 10. h3 {[%clk 0:02:41]}  Nd7 {[%clk 0:02:32]} 11. f4 {[%clk 0:02:30]}  Rb8 {[%clk 0:02:26]} 12. d4 {[%clk 0:02:20]}  cxd4 {[%clk 0:02:25]} 13. Nxd4 {[%clk 0:02:21]}  Qb6 {[%clk 0:02:21]} 14. Na4 {[%clk 0:01:29]}  Bxd4 {[%clk 0:02:15]} 15. Nxb6 {[%clk 0:01:29]}  Bxe3+ {[%clk 0:02:15]} 16. Kh1 {[%clk 0:01:27]}  Bxb6 {[%clk 0:02:16]} 17. f5 {[%clk 0:01:25]}  Nde5 {[%clk 0:02:14]} 18. b3 {[%clk 0:01:17]}  Bd4 {[%clk 0:02:07]} 19. Rc1 {[%clk 0:01:16]}  a5 {[%clk 0:02:05]} 20. Qd2 {[%clk 0:01:11]}  b6 {[%clk 0:02:00]} 21. Qh6 {[%clk 0:00:55]}  Nd7 {[%clk 0:01:55]} 22. g4 {[%clk 0:00:49]}  Bg7 {[%clk 0:01:51]} 23. Qh4 {[%clk 0:00:48]}  Nde5 {[%clk 0:01:46]} 24. g5 {[%clk 0:00:45]}  Bb7 {[%clk 0:01:31]} 25. f6 {[%clk 0:00:44]}  exf6 {[%clk 0:01:31]} 26. gxf6 {[%clk 0:00:44]}  Bh8 {[%clk 0:01:31]} 27. Qh6 {[%clk 0:00:39]}  Nd7 {[%clk 0:01:09]} 28. Rcd1 {[%clk 0:00:20]}  Nc5 {[%clk 0:00:44]} 29. Rf4 {[%clk 0:00:14]}  Nd7 {[%clk 0:00:42]} 30. Rxd6 {[%clk 0:00:12]}  Nxf6 {[%clk 0:00:36]} 31. Rh4 {[%clk 0:00:05]}  Bg7 {[%clk 0:00:34]} 32. Qg5 {[%clk 0:00:04]}  Ne8 {[%clk 0:00:17]} 33. Qd2 {[%clk 0:00:03]}  Nxd6 {[%clk 0:00:17]} 34. Qd5 {[%clk 0:00:00]}  Ne8 {[%clk 0:00:13]} 0-1


[Site "https://www.chess.com"]

[Event "Titled Tuesday Blitz May 9 Early 2023"]
[White "Samaganova, Aleksandra"]
[Black "Yelisieiev, Yevhenii"]
[WhiteFideId "13800221"]
[BlackFideId "14139642"]
[WhiteElo "1858"]
[BlackElo "2403"]
[Result "1-0"]
[Round "01"]
[TimeControl "180+2"]
[Date "2023.05.09"]
[WhiteClock "0:00:05"]
[BlackClock "0:00:00"]

1. c4 {[%clk 0:02:57]}  d6 {[%clk 0:02:55]} 2. Nc3 {[%clk 0:02:54]}  e5 {[%clk 0:02:54]} 3. g3 {[%clk 0:02:53]}  Nf6 {[%clk 0:02:53]} 4. Bg2 {[%clk 0:02:53]}  Nbd7 {[%clk 0:02:53]} 5. e3 {[%clk 0:02:50]}  Be7 {[%clk 0:02:53]} 6. Nge2 {[%clk 0:02:49]}  O-O {[%clk 0:02:53]} 7. O-O {[%clk 0:02:45]}  c6 {[%clk 0:02:46]} 8. d4 {[%clk 0:02:43]}  Re8 {[%clk 0:02:40]} 9. h3 {[%clk 0:02:42]}  d5 {[%clk 0:02:24]} 10. cxd5 {[%clk 0:02:39]}  cxd5 {[%clk 0:02:20]} 11. Nxd5 {[%clk 0:02:39]}  Nxd5 {[%clk 0:02:06]} 12. Bxd5 {[%clk 0:02:38]}  Qb6 {[%clk 0:02:00]} 13. Qb3 {[%clk 0:02:33]}  Qf6 {[%clk 0:01:45]} 14. Bg2 {[%clk 0:02:30]}  exd4 {[%clk 0:01:36]} 15. Nxd4 {[%clk 0:02:30]}  Nc5 {[%clk 0:01:36]} 16. Qc2 {[%clk 0:02:13]}  Bd7 {[%clk 0:01:32]} 17. b4 {[%clk 0:02:07]}  Ne6 {[%clk 0:01:01]} 18. Bb2 {[%clk 0:01:59]}  Qg5 {[%clk 0:00:44]} 19. a3 {[%clk 0:01:37]}  Rac8 {[%clk 0:00:44]} 20. Qb3 {[%clk 0:01:29]}  b6 {[%clk 0:00:43]} 21. Rac1 {[%clk 0:01:28]}  Bd6 {[%clk 0:00:39]} 22. Rfd1 {[%clk 0:01:16]}  h5 {[%clk 0:00:31]} 23. h4 {[%clk 0:01:11]}  Qg6 {[%clk 0:00:28]} 24. Ne2 {[%clk 0:01:01]}  Rxc1 {[%clk 0:00:22]} 25. Rxc1 {[%clk 0:01:00]}  Bb5 {[%clk 0:00:16]} 26. Nd4 {[%clk 0:00:51]}  Nxd4 {[%clk 0:00:15]} 27. Bxd4 {[%clk 0:00:50]}  Bd3 {[%clk 0:00:14]} 28. Rc6 {[%clk 0:00:31]}  Be4 {[%clk 0:00:09]} 29. Bxe4 {[%clk 0:00:27]}  Rxe4 {[%clk 0:00:09]} 30. Qc2 {[%clk 0:00:18]}  Re6 {[%clk 0:00:03]} 31. Rc8+ {[%clk 0:00:15]}  Kh7 {[%clk 0:00:02]} 32. Qxg6+ {[%clk 0:00:14]}  Kxg6 {[%clk 0:00:03]} 33. Kg2 {[%clk 0:00:14]}  Kf5 {[%clk 0:00:04]} 34. Kf3 {[%clk 0:00:14]}  g5 {[%clk 0:00:04]} 35. hxg5 {[%clk 0:00:14]}  Kxg5 {[%clk 0:00:05]} 36. Rg8+ {[%clk 0:00:14]}  Kf5 {[%clk 0:00:05]} 37. Rh8 {[%clk 0:00:14]}  Kg6 {[%clk 0:00:05]} 38. Rg8+ {[%clk 0:00:14]}  Kh7 {[%clk 0:00:05]} 39. Rg7+ {[%clk 0:00:14]}  Kh6 {[%clk 0:00:06]} 40. Rg8 {[%clk 0:00:13]}  a5 {[%clk 0:00:05]} 41. bxa5 {[%clk 0:00:12]}  bxa5 {[%clk 0:00:06]} 42. Ra8 {[%clk 0:00:11]}  Bxa3 {[%clk 0:00:05]} 43. Rxa5 {[%clk 0:00:11]}  Be7 {[%clk 0:00:05]} 44. Ra8 {[%clk 0:00:10]}  Kg6 {[%clk 0:00:04]} 45. Rg8+ {[%clk 0:00:10]}  Kh7 {[%clk 0:00:05]} 46. Rg7+ {[%clk 0:00:10]}  Kh6 {[%clk 0:00:05]} 47. Rxf7 {[%clk 0:00:09]}  Bd6 {[%clk 0:00:04]} 48. Rf6+ {[%clk 0:00:07]}  Rxf6+ {[%clk 0:00:04]} 49. Bxf6 {[%clk 0:00:08]}  Kg6 {[%clk 0:00:05]} 50. Bh4 {[%clk 0:00:08]}  Kf5 {[%clk 0:00:05]} 51. e4+ {[%clk 0:00:08]}  Ke6 {[%clk 0:00:05]} 52. Ke3 {[%clk 0:00:07]}  Bc5+ {[%clk 0:00:06]} 53. Ke2 {[%clk 0:00:07]}  Ke5 {[%clk 0:00:06]} 54. Kf3 {[%clk 0:00:06]}  Bb6 {[%clk 0:00:04]} 55. Be7 {[%clk 0:00:06]}  Ke6 {[%clk 0:00:03]} 56. Bb4 {[%clk 0:00:06]}  Ke5 {[%clk 0:00:04]} 57. Bc3+ {[%clk 0:00:06]}  Ke6 {[%clk 0:00:05]} 58. Bd2 {[%clk 0:00:06]}  Ke5 {[%clk 0:00:03]} 59. Bf4+ {[%clk 0:00:06]}  Ke6 {[%clk 0:00:03]} 60. Be3 {[%clk 0:00:06]}  Bc7 {[%clk 0:00:04]} 61. Kg2 {[%clk 0:00:04]}  Bb8 {[%clk 0:00:03]} 62. f4 {[%clk 0:00:04]}  Kf6 {[%clk 0:00:04]} 63. Kf3 {[%clk 0:00:04]}  Kg6 {[%clk 0:00:04]} 64. Bd4 {[%clk 0:00:05]}  Bc7 {[%clk 0:00:04]} 65. e5 {[%clk 0:00:04]}  Kf5 {[%clk 0:00:04]} 66. Bc5 {[%clk 0:00:03]}  Ba5 {[%clk 0:00:04]} 67. Bf8 {[%clk 0:00:03]}  Be1 {[%clk 0:00:05]} 68. Bh6 {[%clk 0:00:03]}  Bc3 {[%clk 0:00:04]} 69. Bg5 {[%clk 0:00:03]}  Be1 {[%clk 0:00:05]} 70. Bd8 {[%clk 0:00:03]}  Bc3 {[%clk 0:00:05]} 71. Be7 {[%clk 0:00:03]}  Be1 {[%clk 0:00:05]} 72. Kg2 {[%clk 0:00:03]}  Kg4 {[%clk 0:00:02]} 73. Bh4 {[%clk 0:00:03]}  Kf5 {[%clk 0:00:01]} 74. Kf1 {[%clk 0:00:03]}  Bc3 {[%clk 0:00:01]} 75. Ke2 {[%clk 0:00:04]}  Bb4 {[%clk 0:00:02]} 76. Kd3 {[%clk 0:00:04]}  Bc5 {[%clk 0:00:02]} 77. Kc4 {[%clk 0:00:04]}  Bf2 {[%clk 0:00:02]} 78. Kd5 {[%clk 0:00:05]}  Bb6 {[%clk 0:00:00]} 79. e6 {[%clk 0:00:05]} 1-0


[Site "https://www.chess.com"]

[Event "Titled Tuesday Blitz May 9 Early 2023"]
[White "Deepak, Katiyar"]
[Black "Vlassov, Nikolai"]
[WhiteFideId "5026792"]
[BlackFideId "4103360"]
[WhiteElo "2069"]
[BlackElo "2324"]
[Result "0-1"]
[Round "01"]
[TimeControl "180+2"]
[Date "2023.05.09"]
[WhiteClock "0:00:04"]
[BlackClock "0:00:11"]

1. Nf3 {[%clk 0:02:59]}  c5 {[%clk 0:02:57]} 2. g3 {[%clk 0:02:59]}  Nc6 {[%clk 0:02:57]} 3. Bg2 {[%clk 0:02:59]}  e5 {[%clk 0:02:57]} 4. d3 {[%clk 0:02:56]}  d5 {[%clk 0:02:56]} 5. O-O {[%clk 0:02:56]}  f6 {[%clk 0:02:56]} 6. Nbd2 {[%clk 0:02:54]}  Be6 {[%clk 0:02:55]} 7. e4 {[%clk 0:02:35]}  d4 {[%clk 0:02:55]} 8. Ne1 {[%clk 0:02:32]}  g5 {[%clk 0:02:44]} 9. f4 {[%clk 0:02:28]}  gxf4 {[%clk 0:02:43]} 10. gxf4 {[%clk 0:02:28]}  exf4 {[%clk 0:02:35]} 11. Nb3 {[%clk 0:01:53]}  Bd6 {[%clk 0:01:59]} 12. Bxf4 {[%clk 0:01:49]}  Bxf4 {[%clk 0:01:39]} 13. Rxf4 {[%clk 0:01:49]}  Qd6 {[%clk 0:01:39]} 14. Rf1 {[%clk 0:01:44]}  O-O-O {[%clk 0:01:39]} 15. Qd2 {[%clk 0:01:37]}  Nge7 {[%clk 0:01:08]} 16. a4 {[%clk 0:01:33]}  Rdg8 {[%clk 0:01:04]} 17. Kh1 {[%clk 0:01:32]}  Rg6 {[%clk 0:01:01]} 18. Nc1 {[%clk 0:01:08]}  Rhg8 {[%clk 0:01:00]} 19. Rg1 {[%clk 0:01:06]}  Ne5 {[%clk 0:01:00]} 20. Qf4 {[%clk 0:01:03]}  Ng4 {[%clk 0:00:55]} 21. Rf1 {[%clk 0:00:27]}  Qxf4 {[%clk 0:00:44]} 22. Rxf4 {[%clk 0:00:27]}  Ne3 {[%clk 0:00:45]} 23. Rf2 {[%clk 0:00:23]}  Nc6 {[%clk 0:00:42]} 24. Ne2 {[%clk 0:00:20]}  Rh6 {[%clk 0:00:32]} 25. Nf4 {[%clk 0:00:19]}  Bg4 {[%clk 0:00:28]} 26. Bf3 {[%clk 0:00:17]}  Ne5 {[%clk 0:00:26]} 27. Bxg4+ {[%clk 0:00:14]}  Rxg4 {[%clk 0:00:25]} 28. Neg2 {[%clk 0:00:12]}  Kd7 {[%clk 0:00:19]} 29. Re1 {[%clk 0:00:11]}  Nxg2 {[%clk 0:00:14]} 30. Nxg2 {[%clk 0:00:11]}  Rg3 {[%clk 0:00:11]} 31. Ref1 {[%clk 0:00:08]}  Rgh3 {[%clk 0:00:10]} 32. Rxf6 {[%clk 0:00:07]}  Rxh2+ {[%clk 0:00:09]} 33. Kg1 {[%clk 0:00:08]}  Rh1+ {[%clk 0:00:10]} 34. Kf2 {[%clk 0:00:08]}  Rxf6+ {[%clk 0:00:11]} 35. Ke2 {[%clk 0:00:04]}  Rfxf1 {[%clk 0:00:11]} 0-1


[Site "https://www.chess.com"]

[Event "Titled Tuesday Blitz May 9 Early 2023"]
[White "rionelG"]
[Black "Agibileg, Uurtsaikh"]
[BlackFideId "4901606"]
[WhiteElo "2209"]
[BlackElo "2353"]
[Result "0-1"]
[Round "01"]
[TimeControl "180+2"]
[Date "2023.05.09"]
[WhiteClock "0:00:02"]
[BlackClock "0:00:42"]

1. e4 {[%clk 0:02:30]}  c5 {[%clk 0:02:59]} 2. g3 {[%clk 0:02:29]}  d5 {[%clk 0:02:58]} 3. exd5 {[%clk 0:01:02]}  Qxd5 {[%clk 0:02:59]} 4. Nf3 {[%clk 0:01:02]}  Bg4 {[%clk 0:02:45]} 5. Bg2 {[%clk 0:01:03]}  Qe4+ {[%clk 0:02:31]} 6. Kf1 {[%clk 0:01:02]}  Nc6 {[%clk 0:02:24]} 7. h3 {[%clk 0:01:03]}  Bh5 {[%clk 0:02:18]} 8. Nc3 {[%clk 0:01:02]}  Qe6 {[%clk 0:02:14]} 9. d3 {[%clk 0:01:03]}  O-O-O {[%clk 0:02:01]} 10. Bf4 {[%clk 0:00:59]}  f6 {[%clk 0:01:49]} 11. a4 {[%clk 0:00:56]}  Qd7 {[%clk 0:01:25]} 12. a5 {[%clk 0:00:35]}  e5 {[%clk 0:01:22]} 13. Be3 {[%clk 0:00:34]}  Nge7 {[%clk 0:01:15]} 14. g4 {[%clk 0:00:26]}  Bf7 {[%clk 0:01:12]} 15. Nd2 {[%clk 0:00:26]}  Nd5 {[%clk 0:01:05]} 16. Qf3 {[%clk 0:00:14]}  Nd4 {[%clk 0:01:01]} 17. Bxd4 {[%clk 0:00:13]}  cxd4 {[%clk 0:00:59]} 18. Nxd5 {[%clk 0:00:13]}  Bxd5 {[%clk 0:00:58]} 19. Qxd5 {[%clk 0:00:14]}  Qxd5 {[%clk 0:00:57]} 20. Bxd5 {[%clk 0:00:15]}  Rxd5 {[%clk 0:00:58]} 21. Nc4 {[%clk 0:00:15]}  h5 {[%clk 0:00:55]} 22. Kg2 {[%clk 0:00:16]}  Bb4 {[%clk 0:00:54]} 23. Ra4 {[%clk 0:00:14]}  Bc5 {[%clk 0:00:51]} 24. f3 {[%clk 0:00:14]}  g6 {[%clk 0:00:46]} 25. b4 {[%clk 0:00:14]}  Be7 {[%clk 0:00:45]} 26. b5 {[%clk 0:00:13]}  Rxb5 {[%clk 0:00:45]} 27. a6 {[%clk 0:00:14]}  b6 {[%clk 0:00:44]} 28. Re1 {[%clk 0:00:10]}  hxg4 {[%clk 0:00:43]} 29. hxg4 {[%clk 0:00:10]}  g5 {[%clk 0:00:41]} 30. Nd2 {[%clk 0:00:08]}  Rb2 {[%clk 0:00:40]} 31. Rc4+ {[%clk 0:00:08]}  Kd7 {[%clk 0:00:40]} 32. Ne4 {[%clk 0:00:08]}  Rc8 {[%clk 0:00:41]} 33. Rxc8 {[%clk 0:00:08]}  Kxc8 {[%clk 0:00:42]} 34. Re2 {[%clk 0:00:02]}  Ra2 {[%clk 0:00:42]} 0-1


[Site "https://www.chess.com"]

[Event "Titled Tuesday Blitz May 9 Early 2023"]
[White "Kiseljova, Marya"]
[Black "Garv Gaur"]
[WhiteFideId "4155009"]
[BlackFideId "45030839"]
[WhiteElo "1831"]
[BlackElo "2068"]
[Result "0-1"]
[Round "01"]
[TimeControl "180+2"]
[Date "2023.05.09"]
[WhiteClock "0:00:01"]
[BlackClock "0:00:08"]

1. d4 {[%clk 0:03:00]}  Nf6 {[%clk 0:02:54]} 2. c4 {[%clk 0:03:00]}  e6 {[%clk 0:02:52]} 3. Bf4 {[%clk 0:02:59]}  b6 {[%clk 0:02:38]} 4. a3 {[%clk 0:02:58]}  Bb7 {[%clk 0:02:39]} 5. e3 {[%clk 0:02:57]}  c5 {[%clk 0:02:37]} 6. Nc3 {[%clk 0:02:39]}  cxd4 {[%clk 0:02:36]} 7. exd4 {[%clk 0:02:40]}  d5 {[%clk 0:02:35]} 8. Nf3 {[%clk 0:02:37]}  Be7 {[%clk 0:02:34]} 9. Be2 {[%clk 0:02:35]}  O-O {[%clk 0:02:34]} 10. O-O {[%clk 0:02:35]}  Nc6 {[%clk 0:02:31]} 11. Re1 {[%clk 0:02:32]}  Rc8 {[%clk 0:02:30]} 12. h3 {[%clk 0:02:28]}  dxc4 {[%clk 0:02:26]} 13. Bxc4 {[%clk 0:02:27]}  Nxd4 {[%clk 0:02:26]} 14. Nxd4 {[%clk 0:02:02]}  Rxc4 {[%clk 0:02:26]} 15. Be3 {[%clk 0:01:55]}  Nd5 {[%clk 0:02:20]} 16. Qd3 {[%clk 0:01:47]}  Nxe3 {[%clk 0:02:15]} 17. fxe3 {[%clk 0:01:47]}  Rc8 {[%clk 0:02:03]} 18. Rad1 {[%clk 0:01:46]}  Bf6 {[%clk 0:02:01]} 19. Qe2 {[%clk 0:01:40]}  Qe7 {[%clk 0:01:56]} 20. Ndb5 {[%clk 0:01:39]}  Ba6 {[%clk 0:01:56]} 21. Qg4 {[%clk 0:01:34]}  Bxb5 {[%clk 0:01:50]} 22. Nxb5 {[%clk 0:01:33]}  Bxb2 {[%clk 0:01:50]} 23. Re2 {[%clk 0:01:11]}  Bf6 {[%clk 0:01:48]} 24. Rf1 {[%clk 0:01:08]}  Kh8 {[%clk 0:01:45]} 25. a4 {[%clk 0:01:03]}  Rfd8 {[%clk 0:01:41]} 26. Ref2 {[%clk 0:00:59]}  a6 {[%clk 0:01:31]} 27. Nd4 {[%clk 0:00:58]}  Bxd4 {[%clk 0:01:26]} 28. Rxf7 {[%clk 0:00:57]}  Bxe3+ {[%clk 0:01:11]} 29. Kh1 {[%clk 0:00:57]}  Qg5 {[%clk 0:01:12]} 30. Qxe6 {[%clk 0:00:49]}  h6 {[%clk 0:01:11]} 31. R7f5 {[%clk 0:00:43]}  Qh4 {[%clk 0:01:03]} 32. Qxe3 {[%clk 0:00:42]}  Qxa4 {[%clk 0:01:03]} 33. Qxb6 {[%clk 0:00:40]}  Ra8 {[%clk 0:00:56]} 34. Rf7 {[%clk 0:00:35]}  a5 {[%clk 0:00:45]} 35. Qg6 {[%clk 0:00:33]}  Qd4 {[%clk 0:00:43]} 36. R1f4 {[%clk 0:00:28]}  Qa1+ {[%clk 0:00:42]} 37. Kh2 {[%clk 0:00:28]}  a4 {[%clk 0:00:35]} 38. Rh4 {[%clk 0:00:18]}  Qe5+ {[%clk 0:00:34]} 39. Rhf4 {[%clk 0:00:18]}  a3 {[%clk 0:00:34]} 40. Rf5 {[%clk 0:00:15]}  Qb2 {[%clk 0:00:18]} 41. Rh4 {[%clk 0:00:15]}  Qb8+ {[%clk 0:00:14]} 42. Rff4 {[%clk 0:00:13]}  Qd6 {[%clk 0:00:11]} 43. Qg4 {[%clk 0:00:09]}  a2 {[%clk 0:00:10]} 44. Rxh6+ {[%clk 0:00:04]}  Qxh6 {[%clk 0:00:09]} 45. Rf5 {[%clk 0:00:03]}  a1=Q {[%clk 0:00:09]} 46. Rh5 {[%clk 0:00:03]}  Qc1 {[%clk 0:00:07]} 47. Rxh6+ {[%clk 0:00:01]}  Qxh6 {[%clk 0:00:08]} 0-1


[Site "https://www.chess.com"]